[Event "Late-Titled-Tuesday-Blitz-July-09-2024"]
[Site "Chess.com"]
[Date "2024.07.09"]
[Round "7"]
[White "Seochesspie"]
[Black "KNVB"]
[Result "1-0"]
[WhiteElo "2937"]
[BlackElo "2667"]
[TimeControl "180+1"]
[EndTime "15:18:01 PDT"]
[Termination "Seochesspie won on time"]

1. e4 {[%clk 0:03:00.9]} 1... b6 {[%clk 0:03:00.3]} 2. d4 {[%clk 0:02:59.9]}
2... Bb7 {[%clk 0:03:00.7]} 3. Bd3 {[%clk 0:03:00.1]} 3... e6 {[%clk 0:03:01.2]}
4. Nf3 {[%clk 0:02:58]} 4... d5 {[%clk 0:03:00.9]} 5. e5 {[%clk 0:02:55.2]} 5...
Ba6 {[%clk 0:03:00.8]} 6. O-O {[%clk 0:02:53.4]} 6... Bxd3 {[%clk 0:03:00.6]} 7.
Qxd3 {[%clk 0:02:53]} 7... Qd7 {[%clk 0:03:01.5]} 8. h4 {[%clk 0:02:50.2]} 8...
h5 {[%clk 0:03:00.6]} 9. Bg5 {[%clk 0:02:49.2]} 9... Nh6 {[%clk 0:02:55.5]} 10.
a4 {[%clk 0:02:45.7]} 10... Nc6 {[%clk 0:02:55.4]} 11. c3 {[%clk 0:02:44.8]}
11... Be7 {[%clk 0:02:52.6]} 12. Nbd2 {[%clk 0:02:43.7]} 12... Nf5 {[%clk
0:02:49.7]} 13. g3 {[%clk 0:02:41.5]} 13... Bxg5 {[%clk 0:02:32.5]} 14. Nxg5
{[%clk 0:02:41.4]} 14... Nce7 {[%clk 0:02:33.1]} 15. a5 {[%clk 0:02:39.1]} 15...
b5 {[%clk 0:02:32.9]} 16. Nb3 {[%clk 0:02:31.2]} 16... g6 {[%clk 0:02:28.8]} 17.
Nc5 {[%clk 0:02:30]} 17... Qc6 {[%clk 0:02:29.4]} 18. a6 {[%clk 0:02:27.4]}
18... Rb8 {[%clk 0:02:29.1]} 19. Rfc1 {[%clk 0:02:19.5]} 19... Kf8 {[%clk
0:02:27.5]} 20. Nf3 {[%clk 0:02:09.8]} 20... Kg7 {[%clk 0:02:27.4]} 21. Qd2
{[%clk 0:02:08.5]} 21... Qe8 {[%clk 0:02:26.1]} 22. Qg5 {[%clk 0:02:06.7]} 22...
Ng8 {[%clk 0:02:26.8]} 23. Ne1 {[%clk 0:02:04.8]} 23... Qe7 {[%clk 0:02:26.7]}
24. Qf4 {[%clk 0:01:59.6]} 24... Rb6 {[%clk 0:02:18.8]} 25. Ned3 {[%clk
0:01:58.9]} 25... Qd8 {[%clk 0:02:18.9]} 26. Rd1 {[%clk 0:01:55.6]} 26... Nge7
{[%clk 0:02:18.7]} 27. Kg2 {[%clk 0:01:50.3]} 27... Nc6 {[%clk 0:02:18.7]} 28.
b4 {[%clk 0:01:42]} 28... Nb8 {[%clk 0:02:18.9]} 29. Nc1 {[%clk 0:01:40.5]}
29... Qc8 {[%clk 0:02:18.7]} 30. N1b3 {[%clk 0:01:39.1]} 30... Nxa6 {[%clk
0:02:16.6]} 31. Ra2 {[%clk 0:01:35.6]} 31... Nxc5 {[%clk 0:02:15.9]} 32. Nxc5
{[%clk 0:01:33.1]} 32... Qd8 {[%clk 0:01:34.3]} 33. Rxa7 {[%clk 0:01:30.7]}
33... Qe7 {[%clk 0:01:34.7]} 34. Rda1 {[%clk 0:01:29.3]} 34... Rc8 {[%clk
0:01:34.1]} 35. R1a5 {[%clk 0:01:28.3]} 35... Rbb8 {[%clk 0:01:21.1]} 36. Qd2
{[%clk 0:01:24.6]} 36... Rb6 {[%clk 0:01:18.1]} 37. Qd3 {[%clk 0:01:23.4]} 37...
Qe8 {[%clk 0:01:18.4]} 38. Ra1 {[%clk 0:01:19.8]} 38... Rbb8 {[%clk 0:01:16.3]}
39. R7a5 {[%clk 0:01:19.3]} 39... Qc6 {[%clk 0:01:06]} 40. Qd2 {[%clk
0:01:17.5]} 40... Qe8 {[%clk 0:00:59.3]} 41. Ra7 {[%clk 0:01:15.9]} 41... Qd8
{[%clk 0:00:47.4]} 42. Qe2 {[%clk 0:01:08.5]} 42... Qe8 {[%clk 0:00:42.9]} 43.
Na6 {[%clk 0:01:06]} 43... Rb6 {[%clk 0:00:31]} 44. Nc5 {[%clk 0:00:51.1]} 44...
Rbb8 {[%clk 0:00:30.7]} 45. Kg1 {[%clk 0:00:49.8]} 45... Ra8 {[%clk 0:00:25.3]}
46. R1a5 {[%clk 0:00:44.4]} 46... Rab8 {[%clk 0:00:07.8]} 47. Qa2 {[%clk
0:00:43.3]} 47... Qd8 {[%clk 0:00:06.2]} 48. Qe2 {[%clk 0:00:38.1]} 48... Qe8
{[%clk 0:00:06.3]} 49. Qf3 {[%clk 0:00:31.8]} 49... Ra8 {[%clk 0:00:03.8]} 50.
Kg2 {[%clk 0:00:27.7]} 50... Rab8 {[%clk 0:00:01.7]} 51. Qf4 {[%clk 0:00:27.7]}
51... Qd8 {[%clk 0:00:01.6]} 52. Nd3 {[%clk 0:00:25.3]} 52... Rb6 {[%clk
0:00:01.7]} 53. Ne1 {[%clk 0:00:24]} 53... Rbb8 {[%clk 0:00:02]} 54. Nf3 {[%clk
0:00:23.9]} 54... Ra8 {[%clk 0:00:02.6]} 55. Qc1 {[%clk 0:00:20.4]} 55... Rxa7
{[%clk 0:00:02.5]} 56. Rxa7 {[%clk 0:00:20.4]} 56... Ra8 {[%clk 0:00:03.4]} 57.
Qa3 {[%clk 0:00:20.4]} 57... Rxa7 {[%clk 0:00:03.2]} 58. Qxa7 {[%clk 0:00:21.3]}
58... Qd7 {[%clk 0:00:02.3]} 59. Ne1 {[%clk 0:00:16.3]} 59... Qc6 {[%clk
0:00:02.3]} 60. Qc5 {[%clk 0:00:11.4]} 60... Qxc5 {[%clk 0:00:02.8]} 61. bxc5
{[%clk 0:00:11.3]} 61... Ne7 {[%clk 0:00:02.5]} 62. Nd3 {[%clk 0:00:11.1]} 62...
Nc6 {[%clk 0:00:02.6]} 63. Kf3 {[%clk 0:00:11.6]} 63... Kf8 {[%clk 0:00:01.5]}
64. Kf4 {[%clk 0:00:11.1]} 64... Kg7 {[%clk 0:00:01.9]} 65. Kg5 {[%clk
0:00:11.1]} 65... Na5 {[%clk 0:00:02.5]} 66. f3 {[%clk 0:00:09.2]} 66... Nc4
{[%clk 0:00:03]} 67. g4 {[%clk 0:00:09.5]} 67... Nd2 {[%clk 0:00:01.9]} 68. gxh5
{[%clk 0:00:05.2]} 68... Nxf3+ {[%clk 0:00:02.4]} 69. Kg4 {[%clk 0:00:04.4]}
69... Ng1 {[%clk 0:00:02.8]} 70. hxg6 {[%clk 0:00:03.8]} 70... fxg6 {[%clk
0:00:03.7]} 71. Nf4 {[%clk 0:00:03.2]} 71... Kf7 {[%clk 0:00:04.4]} 72. Kg3
{[%clk 0:00:03.1]} 72... g5 {[%clk 0:00:02.1]} 73. hxg5 {[%clk 0:00:03.3]} 73...
c6 {[%clk 0:00:02.2]} 74. Kg2 {[%clk 0:00:03.2]} 74... b4 {[%clk 0:00:03.1]} 75.
cxb4 {[%clk 0:00:03.3]} 1-0

[Event "Late-Titled-Tuesday-Blitz-July-09-2024"]
[Site "Chess.com"]
[Date "2024.07.09"]
[Round "7"]
[White "Andrei_Skvortsov"]
[Black "RantomOpening"]
[Result "1/2-1/2"]
[WhiteElo "2780"]
[BlackElo "2590"]
[TimeControl "180+1"]
[EndTime "15:18:02 PDT"]
[Termination "Game drawn by repetition"]

1. e4 {[%clk 0:03:00.9]} 1... c5 {[%clk 0:02:58]} 2. d4 {[%clk 0:02:59.7]} 2...
cxd4 {[%clk 0:02:58.2]} 3. Qxd4 {[%clk 0:03:00.6]} 3... Nc6 {[%clk 0:02:57.3]}
4. Qd3 {[%clk 0:03:01.2]} 4... Nf6 {[%clk 0:02:57.7]} 5. Nc3 {[%clk 0:03:01.5]}
5... e6 {[%clk 0:02:58.2]} 6. Bf4 {[%clk 0:03:00.6]} 6... Bb4 {[%clk 0:02:58.4]}
7. O-O-O {[%clk 0:02:59.6]} 7... Bxc3 {[%clk 0:02:57.4]} 8. Qxc3 {[%clk
0:03:00.5]} 8... O-O {[%clk 0:02:56]} 9. f3 {[%clk 0:02:59.2]} 9... d5 {[%clk
0:02:56.1]} 10. exd5 {[%clk 0:02:58.9]} 10... Nxd5 {[%clk 0:02:55.3]} 11. Qb3
{[%clk 0:02:59.4]} 11... Qf6 {[%clk 0:02:48.9]} 12. Bd2 {[%clk 0:02:57.7]} 12...
Nd4 {[%clk 0:02:47.6]} 13. Qa3 {[%clk 0:02:55.1]} 13... Bd7 {[%clk 0:02:31.9]}
14. Bd3 {[%clk 0:02:47.4]} 14... Rac8 {[%clk 0:02:30.2]} 15. Kb1 {[%clk
0:02:46.9]} 15... Bb5 {[%clk 0:02:26.8]} 16. Bxb5 {[%clk 0:02:40.7]} 16... Nxb5
{[%clk 0:02:27.7]} 17. Qd3 {[%clk 0:02:40.8]} 17... Nd4 {[%clk 0:02:19.1]} 18.
c3 {[%clk 0:02:39.6]} 18... Nc6 {[%clk 0:02:18.6]} 19. Nh3 {[%clk 0:02:38.4]}
19... h6 {[%clk 0:02:15.8]} 20. Nf2 {[%clk 0:02:37]} 20... Rfd8 {[%clk
0:02:14.8]} 21. Ng4 {[%clk 0:02:29.1]} 21... Qe7 {[%clk 0:02:06.8]} 22. Qc2
{[%clk 0:02:23.5]} 22... Nd4 {[%clk 0:01:47.6]} 23. Qa4 {[%clk 0:02:23.5]} 23...
b5 {[%clk 0:01:34.3]} 24. Qxd4 {[%clk 0:02:22.7]} 24... Nxc3+ {[%clk 0:01:34.1]}
25. Bxc3 {[%clk 0:02:15.7]} 25... Rxd4 {[%clk 0:01:33.8]} 26. Rxd4 {[%clk
0:02:15.4]} 26... Qg5 {[%clk 0:01:31]} 27. g3 {[%clk 0:01:43.2]} 27... Qf5+
{[%clk 0:01:30.3]} 28. Ka1 {[%clk 0:01:41.5]} 28... Qxf3 {[%clk 0:01:30]} 29.
Rhd1 {[%clk 0:01:38.5]} 29... Qe2 {[%clk 0:01:13]} 30. h3 {[%clk 0:01:20.9]}
30... h5 {[%clk 0:01:12.7]} 31. Ne5 {[%clk 0:01:12.3]} 31... Rxc3 {[%clk
0:01:03.3]} 32. bxc3 {[%clk 0:01:11.5]} 32... Qxe5 {[%clk 0:01:03.3]} 33. g4
{[%clk 0:01:09.9]} 33... hxg4 {[%clk 0:01:00.9]} 34. hxg4 {[%clk 0:01:10.8]}
34... Qe3 {[%clk 0:00:59.8]} 35. Kb2 {[%clk 0:01:10.4]} 35... Kh7 {[%clk
0:00:54.4]} 36. R1d3 {[%clk 0:01:08.4]} 36... Qe2+ {[%clk 0:00:53.9]} 37. Rd2
{[%clk 0:01:08.9]} 37... Qf1 {[%clk 0:00:53.4]} 38. Rd7 {[%clk 0:01:05.4]} 38...
Kg6 {[%clk 0:00:50.3]} 39. Rxa7 {[%clk 0:01:04.7]} 39... b4 {[%clk 0:00:45.8]}
40. cxb4 {[%clk 0:01:01.7]} 40... Qf4 {[%clk 0:00:46]} 41. Rad7 {[%clk
0:00:40.3]} 41... Qxb4+ {[%clk 0:00:45.7]} 42. Kc1 {[%clk 0:00:39.7]} 42... Qc4+
{[%clk 0:00:43.7]} 43. Kb1 {[%clk 0:00:36.7]} 43... Qe4+ {[%clk 0:00:42.4]} 44.
Kc1 {[%clk 0:00:35.8]} 44... Qxg4 {[%clk 0:00:41.2]} 45. R7d4 {[%clk 0:00:34.1]}
45... Qg1+ {[%clk 0:00:40.1]} 46. Rd1 {[%clk 0:00:34.1]} 46... Qe3+ {[%clk
0:00:40.1]} 47. Kc2 {[%clk 0:00:34.6]} 47... f5 {[%clk 0:00:39.5]} 48. R4d3
{[%clk 0:00:33.2]} 48... Qc5+ {[%clk 0:00:37.1]} 49. Rc3 {[%clk 0:00:32.7]}
49... Qa5 {[%clk 0:00:35.6]} 50. Kb3 {[%clk 0:00:33.1]} 50... Kf6 {[%clk
0:00:35.2]} 51. a4 {[%clk 0:00:33.4]} 51... g5 {[%clk 0:00:35.4]} 52. Rd6 {[%clk
0:00:32.3]} 52... Qe5 {[%clk 0:00:33.8]} 53. Rcc6 {[%clk 0:00:31.1]} 53... g4
{[%clk 0:00:29.4]} 54. a5 {[%clk 0:00:19.7]} 54... g3 {[%clk 0:00:29]} 55. a6
{[%clk 0:00:15.5]} 55... g2 {[%clk 0:00:25.7]} 56. Rxe6+ {[%clk 0:00:15.4]}
56... Qxe6+ {[%clk 0:00:24.4]} 57. Rxe6+ {[%clk 0:00:15.9]} 57... Kxe6 {[%clk
0:00:25.3]} 58. a7 {[%clk 0:00:16.2]} 58... g1=Q {[%clk 0:00:24.3]} 59. a8=Q
{[%clk 0:00:16.6]} 59... Qb1+ {[%clk 0:00:24.7]} 60. Kc3 {[%clk 0:00:16.2]}
60... Qe1+ {[%clk 0:00:24.3]} 61. Kd3 {[%clk 0:00:15.6]} 61... Qd1+ {[%clk
0:00:23.9]} 62. Ke3 {[%clk 0:00:15.9]} 62... Qb3+ {[%clk 0:00:23.6]} 63. Kf4
{[%clk 0:00:13.7]} 63... Qc4+ {[%clk 0:00:23.6]} 64. Kf3 {[%clk 0:00:14.1]}
64... Qg4+ {[%clk 0:00:23.7]} 65. Kf2 {[%clk 0:00:14]} 65... Kf6 {[%clk
0:00:22.8]} 66. Qd8+ {[%clk 0:00:13.4]} 66... Ke6 {[%clk 0:00:21.7]} 67. Qc8+
{[%clk 0:00:13.5]} 67... Ke5 {[%clk 0:00:21.9]} 68. Qc7+ {[%clk 0:00:14.1]}
68... Kd5 {[%clk 0:00:20.5]} 69. Qd7+ {[%clk 0:00:14.2]} 69... Ke5 {[%clk
0:00:20.3]} 70. Qe7+ {[%clk 0:00:14.6]} 70... Kd4 {[%clk 0:00:19.9]} 71. Qb4+
{[%clk 0:00:14.6]} 71... Ke5 {[%clk 0:00:18.1]} 72. Qxg4 {[%clk 0:00:15]} 72...
fxg4 {[%clk 0:00:19]} 73. Kg3 {[%clk 0:00:15.4]} 73... Kf5 {[%clk 0:00:19.9]}
74. Kg2 {[%clk 0:00:15.9]} 74... Kg5 {[%clk 0:00:20.4]} 75. Kg3 {[%clk
0:00:16.3]} 75... Kh5 {[%clk 0:00:20.7]} 76. Kg2 {[%clk 0:00:16.6]} 76... Kg6
{[%clk 0:00:21.2]} 77. Kg3 {[%clk 0:00:16.9]} 77... Kf5 {[%clk 0:00:21.9]} 78.
Kg2 {[%clk 0:00:17.2]} 78... Kf4 {[%clk 0:00:22]} 79. Kf2 {[%clk 0:00:17.5]}
79... g3+ {[%clk 0:00:22.9]} 80. Kg2 {[%clk 0:00:18.1]} 80... Kg4 {[%clk
0:00:23.7]} 81. Kg1 {[%clk 0:00:16.6]} 81... Kf5 {[%clk 0:00:24.3]} 82. Kg2
{[%clk 0:00:16.6]} 82... Kf4 {[%clk 0:00:25.2]} 83. Kg1 {[%clk 0:00:14.9]} 83...
Ke3 {[%clk 0:00:25.7]} 84. Kg2 {[%clk 0:00:15.2]} 84... Kf4 {[%clk 0:00:25.7]}
85. Kg1 {[%clk 0:00:15.8]} 85... Kg5 {[%clk 0:00:26.2]} 86. Kg2 {[%clk
0:00:15.8]} 86... Kh4 {[%clk 0:00:27.1]} 87. Kg1 {[%clk 0:00:15.9]} 87... Kh3
{[%clk 0:00:26.9]} 88. Kh1 {[%clk 0:00:16.3]} 88... Kg4 {[%clk 0:00:25.8]} 89.
Kg2 {[%clk 0:00:16.3]} 89... Kf4 {[%clk 0:00:25.7]} 1/2-1/2

[Event "Late-Titled-Tuesday-Blitz-July-09-2024"]
[Site "Chess.com"]
[Date "2024.07.09"]
[Round "7"]
[White "GoodOldBell"]
[Black "Juliana_Figueira"]
[Result "1-0"]
[WhiteElo "2381"]
[BlackElo "2009"]
[TimeControl "180+1"]
[EndTime "15:18:02 PDT"]
[Termination "GoodOldBell won by checkmate"]

1. Nf3 {[%clk 0:03:00.9]} 1... Nf6 {[%clk 0:03:00.1]} 2. b3 {[%clk 0:03:01.3]}
2... g6 {[%clk 0:02:59.9]} 3. Bb2 {[%clk 0:03:01.4]} 3... Bg7 {[%clk 0:03:00.6]}
4. g3 {[%clk 0:03:00.4]} 4... O-O {[%clk 0:03:01.1]} 5. Bg2 {[%clk 0:03:00.5]}
5... d6 {[%clk 0:03:00.4]} 6. d4 {[%clk 0:02:59.8]} 6... c5 {[%clk 0:02:58.9]}
7. O-O {[%clk 0:02:56.3]} 7... Nbd7 {[%clk 0:02:56.2]} 8. c4 {[%clk 0:02:55.6]}
8... Rb8 {[%clk 0:02:52.1]} 9. Nc3 {[%clk 0:02:55.1]} 9... a6 {[%clk 0:02:51.3]}
10. e4 {[%clk 0:02:50.3]} 10... Qc7 {[%clk 0:02:47.1]} 11. Rc1 {[%clk
0:02:48.1]} 11... b6 {[%clk 0:02:44.8]} 12. Qd2 {[%clk 0:02:45.4]} 12... Bb7
{[%clk 0:02:44.1]} 13. Nd5 {[%clk 0:02:40.1]} 13... Bxd5 {[%clk 0:02:26.1]} 14.
exd5 {[%clk 0:02:34.1]} 14... Ne4 {[%clk 0:02:22.5]} 15. Qe2 {[%clk 0:02:16.1]}
15... Nef6 {[%clk 0:02:08.9]} 16. Rfd1 {[%clk 0:02:01.5]} 16... Rfe8 {[%clk
0:02:07.5]} 17. Bc3 {[%clk 0:01:45.9]} 17... e6 {[%clk 0:01:54.6]} 18. dxe6
{[%clk 0:01:35.3]} 18... fxe6 {[%clk 0:01:49.3]} 19. dxc5 {[%clk 0:01:31]} 19...
Nxc5 {[%clk 0:01:42]} 20. Nd4 {[%clk 0:01:22.4]} 20... Rbc8 {[%clk 0:01:19.1]}
21. Bh3 {[%clk 0:00:57.3]} 21... e5 {[%clk 0:01:11.7]} 22. Nc2 {[%clk
0:00:50.3]} 22... Ne6 {[%clk 0:01:06]} 23. Bg2 {[%clk 0:00:45.5]} 23... Ng5
{[%clk 0:00:56.8]} 24. h4 {[%clk 0:00:37.2]} 24... Nf7 {[%clk 0:00:52.9]} 25.
Ne3 {[%clk 0:00:36.5]} 25... Kh8 {[%clk 0:00:50.5]} 26. Bb4 {[%clk 0:00:34.1]}
26... a5 {[%clk 0:00:46.9]} 27. Ba3 {[%clk 0:00:33.7]} 27... Rcd8 {[%clk
0:00:31.1]} 28. Nd5 {[%clk 0:00:32.4]} 28... Nxd5 {[%clk 0:00:30.6]} 29. Bxd5
{[%clk 0:00:33.3]} 29... Nh6 {[%clk 0:00:22.1]} 30. Rc2 {[%clk 0:00:25.5]} 30...
Nf5 {[%clk 0:00:21]} 31. Bb2 {[%clk 0:00:21.7]} 31... Ne7 {[%clk 0:00:14.4]} 32.
Kg2 {[%clk 0:00:20.4]} 32... Nf5 {[%clk 0:00:12.2]} 33. h5 {[%clk 0:00:18.6]}
33... Ne7 {[%clk 0:00:09.3]} 34. hxg6 {[%clk 0:00:15.4]} 34... Nxg6 {[%clk
0:00:09.4]} 35. Be4 {[%clk 0:00:15.7]} 35... Qf7 {[%clk 0:00:08.2]} 36. Rh1
{[%clk 0:00:12.3]} 36... Kg8 {[%clk 0:00:07.2]} 37. Qh5 {[%clk 0:00:12.2]} 37...
Bh8 {[%clk 0:00:04]} 38. Bc1 {[%clk 0:00:08.6]} 38... Qg7 {[%clk 0:00:03.9]} 39.
Bh6 {[%clk 0:00:08]} 39... Qf6 {[%clk 0:00:04.3]} 40. Bg5 {[%clk 0:00:06.9]}
40... Qf7 {[%clk 0:00:04.2]} 41. Bxd8 {[%clk 0:00:06.9]} 41... Rxd8 {[%clk
0:00:05]} 42. Bxg6 {[%clk 0:00:06.9]} 42... Qxg6 {[%clk 0:00:04.6]} 43. Qxg6+
{[%clk 0:00:07.3]} 43... hxg6 {[%clk 0:00:05.5]} 44. Rd2 {[%clk 0:00:07.6]}
44... Bf6 {[%clk 0:00:05.9]} 45. Rhd1 {[%clk 0:00:07.6]} 45... Kf7 {[%clk
0:00:06.1]} 46. Rd5 {[%clk 0:00:08.3]} 46... Ke6 {[%clk 0:00:06.5]} 47. Rb5
{[%clk 0:00:08.3]} 47... Rb8 {[%clk 0:00:07]} 48. a3 {[%clk 0:00:07.9]} 48...
Bd8 {[%clk 0:00:06.5]} 49. Rbd5 {[%clk 0:00:07.4]} 49... Bc7 {[%clk 0:00:06.2]}
50. f3 {[%clk 0:00:07.7]} 50... Rf8 {[%clk 0:00:06.4]} 51. g4 {[%clk 0:00:08.1]}
51... Rf4 {[%clk 0:00:06.6]} 52. Kg3 {[%clk 0:00:08]} 52... Rf8 {[%clk
0:00:06.3]} 53. R5d3 {[%clk 0:00:06.3]} 53... Rf4 {[%clk 0:00:06.4]} 54. Rc3
{[%clk 0:00:06.6]} 54... Rf8 {[%clk 0:00:06.5]} 55. b4 {[%clk 0:00:07.1]} 55...
axb4 {[%clk 0:00:06.5]} 56. axb4 {[%clk 0:00:08]} 56... Rc8 {[%clk 0:00:05.2]}
57. Kg2 {[%clk 0:00:04.8]} 57... Bb8 {[%clk 0:00:05.5]} 58. Rc2 {[%clk
0:00:03.8]} 58... b5 {[%clk 0:00:02]} 59. Rdc1 {[%clk 0:00:03.6]} 59... bxc4
{[%clk 0:00:02.2]} 60. Rxc4 {[%clk 0:00:04.1]} 60... Rxc4 {[%clk 0:00:01.5]} 61.
Rxc4 {[%clk 0:00:05]} 61... Kd7 {[%clk 0:00:01.3]} 62. b5 {[%clk 0:00:04.1]}
62... Bc7 {[%clk 0:00:01.6]} 63. Rc6 {[%clk 0:00:04.3]} 63... d5 {[%clk
0:00:01.2]} 64. Rxg6 {[%clk 0:00:03.9]} 64... d4 {[%clk 0:00:01.8]} 65. Kf2
{[%clk 0:00:03.5]} 65... d3 {[%clk 0:00:02.3]} 66. Ke3 {[%clk 0:00:03.5]} 66...
d2 {[%clk 0:00:01.9]} 67. Kxd2 {[%clk 0:00:03.7]} 67... Ba5+ {[%clk 0:00:02.7]}
68. Kd3 {[%clk 0:00:04.1]} 68... Bb4 {[%clk 0:00:03.2]} 69. Ke4 {[%clk 0:00:05]}
69... Bc5 {[%clk 0:00:03.7]} 70. Kf5 {[%clk 0:00:05.9]} 70... Bb6 {[%clk
0:00:03.9]} 71. Rxb6 {[%clk 0:00:05.1]} 71... Kc7 {[%clk 0:00:04.8]} 72. Re6
{[%clk 0:00:05.8]} 72... Kb7 {[%clk 0:00:05.3]} 73. Rxe5 {[%clk 0:00:06.7]}
73... Kb8 {[%clk 0:00:06.1]} 74. Re6 {[%clk 0:00:07.3]} 74... Kb7 {[%clk
0:00:07]} 75. Re7+ {[%clk 0:00:07.6]} 75... Kb8 {[%clk 0:00:07.9]} 76. Ke6
{[%clk 0:00:08.1]} 76... Kc8 {[%clk 0:00:08.3]} 77. Kd6 {[%clk 0:00:08.6]} 77...
Kd8 {[%clk 0:00:08.7]} 78. g5 {[%clk 0:00:07.7]} 78... Kc8 {[%clk 0:00:09.2]}
79. Rd7 {[%clk 0:00:08.4]} 79... Kb8 {[%clk 0:00:09.6]} 80. Kc6 {[%clk
0:00:08.8]} 80... Ka8 {[%clk 0:00:10.1]} 81. Kb6 {[%clk 0:00:08.6]} 81... Kb8
{[%clk 0:00:10.4]} 82. Rd8# {[%clk 0:00:09.4]} 1-0

[Event "Late-Titled-Tuesday-Blitz-July-09-2024"]
[Site "Chess.com"]
[Date "2024.07.09"]
[Round "7"]
[White "mac0504"]
[Black "Noki102"]
[Result "1/2-1/2"]
[WhiteElo "2761"]
[BlackElo "2578"]
[TimeControl "180+1"]
[EndTime "15:18:03 PDT"]
[Termination "Game drawn - insufficient material"]

1. c4 {[%clk 0:03:00.9]} 1... b6 {[%clk 0:02:59.5]} 2. Nc3 {[%clk 0:03:00]} 2...
Bb7 {[%clk 0:02:57.8]} 3. e4 {[%clk 0:02:59.9]} 3... e5 {[%clk 0:02:57.5]} 4.
Nf3 {[%clk 0:02:59.5]} 4... Nc6 {[%clk 0:02:57.4]} 5. g3 {[%clk 0:02:55.7]} 5...
Nf6 {[%clk 0:02:53.7]} 6. Bg2 {[%clk 0:02:55.4]} 6... Bc5 {[%clk 0:02:52.4]} 7.
O-O {[%clk 0:02:53.9]} 7... O-O {[%clk 0:02:53]} 8. Nxe5 {[%clk 0:02:31.2]} 8...
Nxe5 {[%clk 0:02:32.4]} 9. d4 {[%clk 0:02:30.9]} 9... Nxc4 {[%clk 0:02:32.6]}
10. dxc5 {[%clk 0:02:30.9]} 10... bxc5 {[%clk 0:02:32.8]} 11. Bg5 {[%clk
0:02:31.1]} 11... h6 {[%clk 0:02:28.9]} 12. Bxf6 {[%clk 0:02:21.2]} 12... Qxf6
{[%clk 0:02:29.8]} 13. Qxd7 {[%clk 0:02:10.2]} 13... Nxb2 {[%clk 0:01:49.1]} 14.
e5 {[%clk 0:01:44.4]} 14... Qb6 {[%clk 0:01:41]} 15. Nd5 {[%clk 0:01:27.4]}
15... Bxd5 {[%clk 0:01:33.5]} 16. Bxd5 {[%clk 0:01:28.3]} 16... Rab8 {[%clk
0:01:05]} 17. Rab1 {[%clk 0:01:23.3]} 17... Qa5 {[%clk 0:00:56.6]} 18. Rfc1
{[%clk 0:01:09.7]} 18... c4 {[%clk 0:00:48.4]} 19. e6 {[%clk 0:01:07]} 19...
fxe6 {[%clk 0:00:43.4]} 20. Bxe6+ {[%clk 0:01:03.8]} 20... Kh8 {[%clk
0:00:43.6]} 21. Bxc4 {[%clk 0:00:55.5]} 21... Qc5 {[%clk 0:00:35.9]} 22. Bf7
{[%clk 0:00:45.1]} 22... Qe5 {[%clk 0:00:16.6]} 23. Qxc7 {[%clk 0:00:44.9]}
23... Qf6 {[%clk 0:00:14.4]} 24. Rc2 {[%clk 0:00:37.3]} 24... Qxf7 {[%clk
0:00:07.3]} 25. Qxf7 {[%clk 0:00:36.6]} 25... Rxf7 {[%clk 0:00:08.2]} 26. Rcxb2
{[%clk 0:00:34.5]} 26... Rxb2 {[%clk 0:00:03]} 27. Rxb2 {[%clk 0:00:35.4]} 27...
Rf3 {[%clk 0:00:03.2]} 28. Kg2 {[%clk 0:00:35.2]} 28... Ra3 {[%clk 0:00:03.3]}
29. h4 {[%clk 0:00:16.8]} 29... h5 {[%clk 0:00:02.4]} 30. Rb5 {[%clk 0:00:09.3]}
30... g6 {[%clk 0:00:02.5]} 31. Rb2 {[%clk 0:00:07.1]} 31... Kg7 {[%clk
0:00:02.6]} 32. f3 {[%clk 0:00:05.2]} 32... Kf6 {[%clk 0:00:02.8]} 33. Kf2
{[%clk 0:00:05]} 33... Kf5 {[%clk 0:00:03.2]} 34. Rb5+ {[%clk 0:00:04.9]} 34...
Kf6 {[%clk 0:00:03.4]} 35. Rb2 {[%clk 0:00:05.8]} 35... a6 {[%clk 0:00:03.6]}
36. Re2 {[%clk 0:00:06.7]} 36... Kf5 {[%clk 0:00:03.7]} 37. Kg2 {[%clk
0:00:07.2]} 37... Kf6 {[%clk 0:00:01.6]} 38. Rf2 {[%clk 0:00:07.3]} 38... Kf5
{[%clk 0:00:02]} 39. Rb2 {[%clk 0:00:07.2]} 39... Ra4 {[%clk 0:00:01]} 40. Kf2
{[%clk 0:00:06.2]} 40... Ra3 {[%clk 0:00:01.5]} 41. Ke2 {[%clk 0:00:06.1]} 41...
Ra4 {[%clk 0:00:02]} 42. Kf2 {[%clk 0:00:02.3]} 42... Ra3 {[%clk 0:00:02.5]} 43.
Kg2 {[%clk 0:00:03.2]} 43... Ra4 {[%clk 0:00:02.9]} 44. Rf2 {[%clk 0:00:04.1]}
44... Ra3 {[%clk 0:00:03]} 45. Kh3 {[%clk 0:00:04.5]} 45... Kf6 {[%clk
0:00:02.7]} 46. g4 {[%clk 0:00:04.5]} 46... hxg4+ {[%clk 0:00:02.9]} 47. Kxg4
{[%clk 0:00:05.4]} 47... Ra4+ {[%clk 0:00:03.4]} 48. f4 {[%clk 0:00:05.7]} 48...
Ra5 {[%clk 0:00:03]} 49. Rb2 {[%clk 0:00:05.7]} 49... Kf7 {[%clk 0:00:02.6]} 50.
Rb7+ {[%clk 0:00:05.7]} 50... Kf6 {[%clk 0:00:03]} 51. Rb6+ {[%clk 0:00:06.3]}
51... Kf7 {[%clk 0:00:03.6]} 52. Rb2 {[%clk 0:00:04.2]} 52... Kf6 {[%clk
0:00:03.7]} 53. Re2 {[%clk 0:00:04.6]} 53... Kf7 {[%clk 0:00:03.9]} 54. Kg3
{[%clk 0:00:05]} 54... Ra3+ {[%clk 0:00:03.5]} 55. Kg4 {[%clk 0:00:05.7]} 55...
Ra5 {[%clk 0:00:03.7]} 56. Rd2 {[%clk 0:00:06.3]} 56... Kf6 {[%clk 0:00:03.5]}
57. Rc2 {[%clk 0:00:07.1]} 57... Kf7 {[%clk 0:00:03.9]} 58. Rc7+ {[%clk
0:00:07.5]} 58... Kf6 {[%clk 0:00:04.5]} 59. Rc6+ {[%clk 0:00:08.4]} 59... Kf7
{[%clk 0:00:05.1]} 60. Rc2 {[%clk 0:00:09.3]} 60... Kf6 {[%clk 0:00:05.7]} 61.
Rh2 {[%clk 0:00:08]} 61... Kf7 {[%clk 0:00:05.1]} 62. Kf3 {[%clk 0:00:08.2]}
62... Kf6 {[%clk 0:00:05.5]} 63. Ke4 {[%clk 0:00:08.4]} 63... Ra4+ {[%clk
0:00:05.6]} 64. Kf3 {[%clk 0:00:08.9]} 64... Ra3+ {[%clk 0:00:06.1]} 65. Kg4
{[%clk 0:00:09.4]} 65... Ra5 {[%clk 0:00:07]} 66. Rf2 {[%clk 0:00:09.9]} 66...
Kf7 {[%clk 0:00:07.1]} 67. Kf3 {[%clk 0:00:10.3]} 67... Kf6 {[%clk 0:00:07]} 68.
Ke4 {[%clk 0:00:10.7]} 68... Ra4+ {[%clk 0:00:07.2]} 69. Kd5 {[%clk 0:00:11.1]}
69... Kf5 {[%clk 0:00:05.3]} 70. Kc6 {[%clk 0:00:01.6]} 70... Rxf4 {[%clk
0:00:05.3]} 71. Rxf4+ {[%clk 0:00:02.2]} 71... Kxf4 {[%clk 0:00:06.2]} 72. Kb6
{[%clk 0:00:03]} 72... Kg4 {[%clk 0:00:06.8]} 73. Kxa6 {[%clk 0:00:03.9]} 73...
Kxh4 {[%clk 0:00:07.5]} 74. a4 {[%clk 0:00:04.8]} 74... g5 {[%clk 0:00:08.2]}
75. a5 {[%clk 0:00:05.7]} 75... g4 {[%clk 0:00:09]} 76. Kb7 {[%clk 0:00:04.7]}
76... g3 {[%clk 0:00:09.9]} 77. a6 {[%clk 0:00:05.6]} 77... g2 {[%clk
0:00:10.3]} 78. a7 {[%clk 0:00:06.5]} 78... g1=Q {[%clk 0:00:10.8]} 79. a8=Q
{[%clk 0:00:07.4]} 79... Qg2+ {[%clk 0:00:09.1]} 80. Kb8 {[%clk 0:00:08.3]}
80... Qg8+ {[%clk 0:00:09.1]} 81. Kb7 {[%clk 0:00:08.5]} 81... Qf7+ {[%clk
0:00:09.4]} 82. Kb8 {[%clk 0:00:08.9]} 82... Qe8+ {[%clk 0:00:10]} 83. Kb7
{[%clk 0:00:09.3]} 83... Qd7+ {[%clk 0:00:10.6]} 84. Kb8 {[%clk 0:00:09.4]}
84... Qd8+ {[%clk 0:00:08]} 85. Kb7 {[%clk 0:00:09.9]} 85... Qxa8+ {[%clk
0:00:08.9]} 86. Kxa8 {[%clk 0:00:10.5]} 1/2-1/2